bitfinex/quotes_ETHUSD_20240822
["timestamp","ask_amount","ask_price","bid_price","bid_amount"]
[1724293582475,0.27761373,2621.3,2620.8,2.28932]
[1724293582619,0.27761373,2621.3,2620.9,2.28921]
[1724293582832,0.04872373,2621.3,2621.2,2.28902]
[1724293583078,2.28846,2621.9,2621.2,2.28902]
[1724293583278,2.28864,2621.7,2621.0,4.74152]
[1724293583445,0.0477053,2621.6,2621.0,4.74152]
[1724293583776,2.3363853,2621.6,2621.0,7.03067]
[1724293584175,2.3363853,2621.6,2621.1,2.28909]
[1724293584587,0.0477053,2621.6,2621.2,2.289]
[1724293584728,0.53410843,2621.6,2621.3,2.28893]
[1724293584934,0.228846,2621.8,2621.3,4.779]
[1724293585176,0.04751945,2621.5,2621.3,4.77896]
[1724293585342,2.68717078,2621.9,2621.3,4.77896]
[1724293585535,0.04743346,2621.4,2621.3,4.77896]
[1724293585734,2.68717078,2621.9,2621.3,4.77896]
[1724293586362,6.22001581,2622.1,2620.8,2.28934]
[1724293586363,0.0461424,2621.8,2621.5,4.57737]
[1724293586570,0.0461424,2621.8,2621.5,2.28868]
[1724293586881,0.04447645,2621.7,2621.5,4.57737]
[1724293587033,2.28816,2622.2,2621.5,4.57737]
[1724293587238,0.04475152,2622.1,2621.7,2.28851]
[1724293587476,0.82746659,2622.2,2621.8,2.4112]
[1724293587674,0.04478757,2622.1,2621.8,2.4112]
[1724293588189,0.04478757,2622.1,2621.1,3.0]
[1724293588190,0.04478757,2622.1,2621.6,2.28867]
[1724293588374,0.36082899,2622.1,2621.6,2.28867]
[1724293589039,0.36082899,2622.1,2621.7,2.28857]
[1724293589271,0.36082899,2622.1,2621.7,2.28854]
[1724293589480,0.04478757,2622.1,2621.8,2.28843]
[1724293590481,0.04478757,2622.1,2621.9,2.28836]
[1724293590639,4.32869997,2622.4,2622.0,4.69952]
[1724293590971,0.04500107,2622.3,2622.0,4.69952]
[1724293591157,0.48237117,2622.3,2622.0,4.69952]
[1724293591482,0.48237117,2622.3,2621.9,2.28836]
[1724293591690,0.48237117,2622.3,2621.7,4.77681]
[1724293591895,2.77048117,2622.3,2621.7,4.77681]
[1724293592190,0.93872011,2622.2,2621.7,4.77681]
[1724293592685,0.04489884,2622.1,2621.7,4.77681]
[1724293593003,2.33321884,2622.1,2621.5,2.2887]
[1724293593857,2.28833,2622.0,2621.5,2.2887]
[1724293594096,0.2783376,2621.9,2621.5,2.2887]
[1724293594656,0.2783376,2621.9,2621.6,2.28866]
[1724293594862,0.04501472,2621.9,2621.5,2.2887]
[1724293595061,2.28829,2622.1,2621.5,2.2887]
[1724293595279,0.04508349,2622.0,2621.5,2.2887]
[1724293595857,2.33343349,2622.0,2621.5,2.2887]
[1724293596090,0.23334335,2621.9,2621.5,2.2887]
[1724293596289,0.04488994,2621.8,2621.5,2.2887]
[1724293596806,0.04488994,2621.8,2621.5,4.57741]
[1724293597153,0.04488994,2621.8,2621.5,2.2887]
[1724293597796,0.04488994,2621.8,2621.6,2.28867]
[1724293598095,0.04488994,2621.8,2621.7,2.28859]
[1724293598293,3.22692011,2622.2,2621.7,2.28859]
[1724293598456,0.36621372,2622.1,2621.7,2.28859]
[1724293599273,0.36621372,2622.1,2621.6,2.28867]
[1724293599582,4.57897,2622.0,2621.4,2.28878]
[1724293599765,0.49451837,2621.9,2621.4,2.28878]
[1724293599969,0.5379801,2621.9,2621.4,2.28878]
[1724293600403,0.5379801,2621.9,2621.5,2.28868]
[1724293600605,0.5379801,2621.9,2621.4,2.28878]
[1724293600903,0.5379801,2621.9,2621.6,2.28862]
[1724293601053,0.04346173,2621.9,2621.6,2.28862]
[1724293601250,0.32269201,2622.1,2621.6,2.28862]
[1724293601454,0.04350195,2622.0,2621.6,2.28862]
[1724293602042,0.04350195,2622.0,2621.6,4.57724]
[1724293602741,0.04350195,2622.0,2621.8,2.28844]
[1724293602887,0.04350195,2622.0,2621.6,4.57723]
[1724293603083,0.04350195,2622.0,2621.6,2.2886]
[1724293604594,0.04350195,2622.0,2621.7,2.4319]
[1724293604819,0.04350195,2622.0,2621.8,2.28843]
[1724293605021,0.04350195,2622.0,2621.8,4.57688]
[1724293605236,0.04341003,2621.9,2621.8,2.28843]
[1724293605439,2.68673997,2622.4,2621.8,2.28843]
[1724293605642,0.66773468,2622.3,2621.9,2.28841]
[1724293605943,0.31237199,2622.3,2621.9,2.28841]
[1724293607492,0.35543372,2622.2,2621.9,2.28841]
[1724293607693,0.04356048,2622.1,2621.9,2.28841]
[1724293607992,0.268674,2622.3,2621.9,2.28841]
[1724293608198,0.35544326,2622.2,2621.9,2.28841]
[1724293608399,0.04361649,2622.1,2621.9,2.28841]
[1724293608743,0.268674,2622.3,2621.9,2.28841]
[1724293608894,0.04354773,2622.0,2621.9,2.28841]
[1724293609092,0.268674,2622.3,2621.9,2.28841]
[1724293609296,0.39914049,2622.2,2621.9,2.28841]
[1724293609497,0.04368524,2622.2,2621.9,2.28841]
[1724293609746,0.268674,2622.3,2621.7,7.00899]
[1724293609891,0.04361649,2622.1,2621.7,7.00899]
[1724293610092,2.33185649,2622.1,2621.5,2.28871]
[1724293610347,0.5886348,2622.0,2621.4,2.28879]
[1724293610635,0.39909228,2621.9,2621.4,4.57759]
[1724293610842,0.0435608,2621.9,2621.4,2.28879]
[1724293611193,0.0435608,2621.9,2621.5,2.28868]
[1724293612197,0.35550575,2621.8,2621.5,2.28868]
[1724293612399,0.0435608,2621.9,2621.5,2.28868]
[1724293612608,0.35551486,2621.8,2621.6,2.28867]
[1724293612846,0.04339904,2621.7,2621.6,2.28867]
[1724293613043,0.23318565,2622.0,2621.6,2.28867]
[1724293613250,0.39905067,2621.9,2621.7,4.71387]
[1724293613401,0.04353658,2621.9,2621.7,2.4253]
[1724293613601,1.98138454,2622.2,2621.7,2.4253]
[1724293613602,1.98138454,2622.2,2621.7,4.71383]
[1724293613837,1.08172392,2622.1,2621.8,2.28847]
[1724293614040,0.35551835,2622.0,2621.8,2.28847]
[1724293614217,0.35551835,2622.0,2621.7,4.71383]
[1724293614218,0.04336696,2621.9,2621.7,4.71383]
[1724293614639,0.68262785,2622.1,2621.7,4.71383]
[1724293614848,0.39895451,2622.0,2621.7,4.71383]
[1724293615012,0.35551879,2621.9,2621.7,4.71383]
[1724293615212,0.35551879,2621.9,2621.8,2.2885]
[1724293615535,0.35551879,2622.1,2621.8,2.2885]
[1724293615739,0.35551879,2622.0,2621.8,2.2885]
[1724293615980,0.35551879,2621.9,2621.8,2.2885]
[1724293616120,0.84919304,2622.2,2621.7,4.71383]
[1724293616326,0.35551879,2622.1,2621.7,4.71383]
[1724293617412,0.35551879,2622.1,2621.7,7.00237]
[1724293617651,0.35551879,2622.1,2621.7,4.71383]
[1724293617803,0.89425335,2622.1,2621.7,4.71383]
[1724293618012,0.35551879,2622.0,2621.7,4.71383]
[1724293619767,2.64386879,2622.0,2621.5,2.28871]
[1724293619924,0.35551879,2621.9,2621.5,2.28871]
[1724293620126,0.35551879,2621.8,2621.5,2.28871]
[1724293620343,0.35551879,2621.7,2621.5,2.28871]
[1724293620542,0.35551879,2621.6,2621.5,2.28871]
[1724293622640,0.35551879,2621.6,2621.4,2.4253]
[1724293622823,5.0447339,2621.9,2621.0,2.2716]
[1724293622824,0.35551879,2621.5,2621.0,2.2716]
[1724293623024,0.35551879,2621.4,2621.0,4.56075]
[1724293623257,0.35551879,2621.3,2620.7,4.561]
[1724293623458,0.35551879,2621.2,2620.7,4.561]
[1724293623656,0.35551879,2621.1,2620.7,4.561]
[1724293623866,0.35551879,2621.0,2620.8,2.28932]
[1724293624324,0.35543461,2620.9,2620.8,2.28932]
[1724293627175,2.87943715,2621.3,2620.8,2.28932]
[1724293627393,2.87943715,2621.3,2620.9,2.28927]
[1724293627843,0.39818903,2621.2,2620.9,2.28927]
[1724293628053,0.35544068,2621.1,2620.9,2.28927]
[1724293628251,0.39806945,2621.0,2620.9,2.28927]
[1724293628594,0.39806945,2621.0,2620.7,2.2716]
[1724293628776,0.35544068,2620.9,2620.5,4.57915]
[1724293629096,0.39794984,2620.8,2620.5,2.28957]
[1724293629310,0.39794984,2620.8,2620.0,2.3678]
[1724293629311,2.28964,2620.5,2620.0,2.3678]
[1724293629449,0.62650576,2620.4,2619.9,2.2901]
[1724293629646,0.35537931,2620.3,2619.9,2.2901]
[1724293629893,0.39737389,2620.2,2620.1,2.28997]
[1724293630297,0.39730796,2620.2,2619.9,2.29008]
[1724293630496,0.04199458,2620.2,2619.9,2.29008]
[1724293630832,0.228964,2620.4,2620.0,2.29]
[1724293631099,0.35530756,2620.3,2620.1,2.28992]
[1724293631252,1.9849604,2620.7,2620.2,2.28984]
[1724293631616,0.35532609,2620.6,2620.3,2.28979]
[1724293631897,1.9849604,2620.7,2619.8,4.65799]
[1724293631898,0.35532609,2620.5,2620.1,4.74881]
[1724293632050,4.37080365,2620.7,2620.1,4.74881]
[1724293632251,0.35532939,2620.6,2620.1,4.74881]
[1724293632465,0.35532939,2620.5,2620.3,2.28976]
[1724293632692,1.98080365,2620.8,2620.3,2.28976]
[1724293632899,0.78234017,2620.7,2620.4,2.2897]
[1724293633196,2.28916,2621.1,2620.5,2.28963]
[1724293633404,0.35540371,2621.0,2620.5,2.28963]
[1724293633693,2.28916,2621.1,2620.5,2.28963]
[1724293633903,0.45977263,2621.0,2620.5,2.28963]
[1724293634051,0.35536523,2620.9,2620.5,2.28963]
[1724293634253,0.35536033,2620.8,2620.5,2.28963]
[1724293634567,0.45977263,2621.0,2620.5,2.28963]
[1724293634785,0.35536197,2620.9,2620.6,2.28947]
[1724293635104,0.35536197,2620.8,2620.6,2.28947]
[1724293635250,4.59766627,2621.2,2620.6,2.28947]
[1724293635450,0.35537684,2621.1,2620.6,2.28947]
[1724293635702,0.35537684,2621.0,2620.7,4.69606]
[1724293635869,2.28898,2621.3,2620.8,2.28935]
[1724293636058,0.82199529,2621.2,2620.7,2.4066]
[1724293636258,0.35540085,2621.1,2620.7,4.69605]
[1724293636471,0.46659444,2621.2,2620.7,4.69605]
[1724293636682,0.35539693,2621.1,2620.7,4.69605]
[1724293636998,0.46659444,2621.2,2620.7,4.69605]
[1724293637166,2.28898,2621.3,2620.7,4.69605]
[1724293637374,0.35542208,2621.2,2620.7,4.69605]
[1724293637550,1.98080365,2621.5,2621.0,4.76351]
[1724293637753,0.35542138,2621.4,2621.0,4.76351]
[1724293637986,0.35542138,2621.3,2621.0,2.4744]
[1724293638168,0.228868,2621.5,2621.0,2.4744]
[1724293638472,0.35544999,2621.4,2621.1,2.28911]
[1724293638654,0.228868,2621.5,2621.1,2.28911]
[1724293639157,0.3554509,2621.4,2621.1,2.28911]
[1724293639362,0.228868,2621.5,2621.1,2.28911]
[1724293639567,0.39877474,2621.7,2621.1,2.28905]
[1724293639783,0.35547348,2621.6,2621.1,2.28905]
[1724293639963,0.35547348,2621.5,2621.1,2.28905]
[1724293640164,2.68741474,2621.7,2621.1,2.28905]
[1724293640418,0.9035159,2621.6,2621.1,2.28905]
[1724293640572,3.1922051,2621.6,2621.1,2.28905]
[1724293640778,0.71093187,2621.5,2621.1,2.28905]
[1724293640989,0.35546555,2621.5,2621.0,2.4744]
[1724293641212,3.03888009,2621.5,2621.0,2.4744]
[1724293641366,2.68341454,2621.5,2621.0,2.4744]
[1724293641572,0.35544797,2621.4,2621.0,4.76358]
[1724293641784,0.39464454,2621.5,2621.0,4.76358]
[1724293643068,0.04273946,2621.4,2621.0,4.76358]
[1724293643486,0.04273946,2621.4,2620.8,2.28934]
[1724293643487,0.61216124,2621.4,2620.8,2.28934]
[1724293643685,2.90107124,2621.4,2620.8,2.28934]
[1724293643917,0.35544433,2621.3,2620.8,2.28934]
[1724293644121,0.04270722,2621.2,2620.8,2.28934]
[1724293644617,2.85833178,2621.4,2620.9,2.28928]
[1724293644818,2.85833178,2621.4,2620.7,2.3969]
[1724293644819,0.04267448,2621.1,2620.7,2.3969]
[1724293645023,0.56942178,2621.4,2620.7,2.3969]
[1724293645226,0.04246928,2621.0,2620.7,2.3969]
[1724293645394,1.97900552,2621.6,2620.7,2.3969]
[1724293645574,0.35542719,2621.5,2620.7,2.3969]
[1724293645780,0.35542719,2621.4,2620.7,2.3969]
[1724293646191,0.04119242,2621.3,2620.7,2.3969]
[1724293647626,0.39877474,2621.7,2620.7,2.3969]
[1724293647782,0.04108424,2621.2,2620.7,2.3969]
[1724293648122,2.37785278,2621.7,2620.7,2.3969]
[1724293648425,0.35546419,2621.6,2620.7,2.3969]
[1724293648593,2.66566419,2621.5,2620.7,2.3969]
[1724293648797,0.35546419,2621.4,2620.7,2.3969]
[1724293648980,2.35135474,2621.5,2620.7,2.3969]
[1724293648981,0.35546419,2621.3,2620.7,2.3969]
[1724293649180,0.35546419,2621.2,2620.7,2.3969]
[1724293649409,0.04104679,2621.3,2620.7,2.3969]
[1724293649608,0.35542987,2621.2,2620.7,2.3969]
[1724293649786,0.04107334,2621.2,2620.7,2.3969]
[1724293649995,4.28946824,2621.5,2620.7,2.3969]
[1724293650201,0.0411231,2621.1,2620.7,2.3969]
[1724293650401,0.8396819,2621.4,2620.7,2.3969]
[1724293650615,0.0411909,2621.0,2620.7,2.3969]
[1724293650927,0.8396819,2621.4,2620.7,2.3969]
[1724293651091,0.04114012,2620.9,2620.7,2.3969]
[1724293651293,0.8396819,2621.4,2620.7,2.3969]
[1724293651496,0.86834941,2621.3,2620.7,2.3969]
[1724293651699,0.39681368,2621.2,2620.7,2.3969]
[1724293651997,0.35543111,2621.1,2620.7,2.3969]
[1724293652397,0.04124499,2621.0,2620.7,2.3969]
[1724293653029,0.5129183,2621.3,2620.7,2.3969]
[1724293653181,0.041068,2620.9,2620.7,2.3969]
[1724293653386,1.9793011,2621.5,2620.7,2.3969]
[1724293653587,0.04099919,2620.8,2620.7,2.3969]
[1724293653818,1.9793011,2621.5,2620.7,2.3969]
[1724293654374,0.3554495,2621.4,2620.7,2.3969]
[1724293654621,0.3554495,2621.3,2620.7,2.3969]
[1724293654827,0.39682874,2621.3,2620.7,2.3969]
[1724293655021,0.3554495,2621.2,2620.7,2.3969]
[1724293655226,0.39675996,2621.2,2620.7,2.3969]
[1724293655394,0.04131046,2621.2,2620.7,2.3969]
[1724293655601,0.35543811,2621.1,2620.7,2.3969]
[1724293655814,0.04127772,2621.1,2620.7,2.3969]
[1724293656010,1.98040584,2621.5,2620.7,2.3969]
[1724293656329,0.65229149,2621.4,2620.7,2.3969]
[1724293656534,0.35541372,2621.3,2620.7,2.3969]
[1724293656836,0.39677826,2621.2,2620.7,2.3969]
[1724293657131,0.35541372,2621.1,2620.7,2.3969]
[1724293657291,0.35540528,2621.1,2620.7,2.3969]
[1724293657489,0.04124499,2621.0,2620.7,2.3969]
[1724293657829,2.63331869,2621.4,2620.7,2.3969]
[1724293658034,0.04103704,2620.9,2620.7,2.3969]
[1724293658199,2.24373771,2621.3,2620.7,2.3969]
[1724293658388,0.04098626,2620.8,2620.7,2.3969]
[1724293658590,0.26333187,2621.3,2620.7,2.3969]
[1724293658926,0.35530415,2621.2,2620.7,2.3969]
[1724293659085,0.35530415,2621.1,2620.7,2.3969]
[1724293659283,0.35530415,2621.0,2620.7,2.3969]
[1724293659526,0.04104707,2621.0,2620.7,2.3969]
[1724293659711,0.26333187,2621.3,2620.7,2.3969]
[1724293659925,0.35533422,2621.2,2620.7,2.3969]
[1724293660238,0.35533422,2621.1,2620.7,2.3969]
[1724293660429,0.39648615,2621.1,2620.7,2.3969]
[1724293660729,0.04115193,2621.1,2620.7,2.3969]
[1724293661029,0.26333187,2621.3,2620.7,2.3969]
[1724293661030,0.35527711,2621.0,2620.7,2.3969]
[1724293661333,0.04110116,2621.0,2620.7,2.3969]
[1724293661700,0.26333187,2621.3,2620.7,2.3969]
[1724293661908,0.04106842,2620.9,2620.7,2.3969]
[1724293662248,0.04099962,2620.8,2620.7,2.3969]
[1724293662396,2.2442885,2621.3,2620.7,2.3969]
[1724293662599,0.04087339,2620.8,2620.7,2.3969]
[1724293662809,1.98095663,2621.4,2620.7,2.63659]
[1724293663008,0.04089143,2620.8,2620.7,2.3969]
[1724293663301,1.98095663,2621.4,2620.7,2.3969]
[1724293663501,0.35528204,2621.3,2620.7,2.3969]
[1724293663808,0.35528204,2621.2,2620.7,2.3969]
[1724293664345,0.04110803,2621.1,2620.7,2.3969]
[1724293664525,0.35528204,2621.0,2620.7,2.3969]
[1724293664728,0.04104529,2620.9,2620.7,2.3969]
[1724293665114,0.04097648,2620.8,2620.7,2.3969]
[1724293665314,1.98308219,2621.4,2620.7,2.3969]
[1724293665518,0.35529601,2621.3,2620.7,2.63659]
[1724293665755,0.35529601,2621.2,2620.7,2.63659]
[1724293666045,0.04121895,2621.1,2620.9,4.57849]
[1724293666250,0.35529601,2621.0,2620.9,2.28921]
[1724293666648,0.39631995,2621.0,2620.9,2.28921]
[1724293667749,0.04102394,2621.0,2620.9,2.28921]
[1724293668101,0.39635752,2621.0,2620.9,2.28921]
[1724293668406,0.39635752,2621.0,2620.7,4.6863]
[1724293668407,0.39634767,2621.0,2620.7,2.3969]
[1724293668602,0.35528925,2620.9,2620.7,2.3969]
[1724293668946,0.35528925,2620.8,2620.7,2.3969]
[1724293669309,0.35528925,2620.8,2620.5,4.64238]
[1724293669504,0.35528925,2620.7,2620.5,6.93196]
[1724293669718,0.35528925,2620.6,2620.5,6.93196]
[1724293669959,0.39608773,2620.6,2620.5,6.93196]
[1724293670307,1.984137,2621.1,2620.7,2.28943]
[1724293670510,0.35525639,2621.0,2620.7,2.28943]
[1724293670725,0.3961069,2620.9,2620.7,2.28943]
[1724293671022,0.35525639,2620.8,2620.7,2.28943]
[1724293671564,0.3961038,2620.8,2620.7,2.28943]
[1724293672942,0.3961038,2620.8,2620.7,4.77143]
[1724293674231,0.3961038,2620.8,2620.7,2.482]
[1724293674741,0.39610005,2620.8,2620.7,2.482]
[1724293674964,2.92354449,2620.8,2620.2,2.28982]
[1724293675174,2.92354449,2620.8,2620.1,2.482]
[1724293675175,2.28974,2620.4,2620.1,2.482]
[1724293675479,0.35525264,2620.3,2619.9,4.65004]
[1724293675633,0.35525264,2620.2,2619.9,4.65004]
[1724293675829,0.35525264,2620.2,2619.3,7.5404092]
[1724293675830,0.35525264,2620.1,2619.4,2.3599]
[1724293676130,2.29025,2619.8,2619.4,2.3599]
[1724293676459,1.98414434,2619.9,2619.4,4.65044]
[1724293676460,0.39491578,2619.7,2619.4,4.65044]
[1724293676643,0.35525264,2619.6,2619.4,4.65044]
[1724293676843,0.35525264,2619.5,2619.4,4.65044]
[1724293677052,0.39461786,2619.5,2619.4,2.3599]
[1724293677250,0.03936522,2619.5,2619.4,2.3599]
[1724293677686,1.98414434,2619.9,2619.4,2.3599]
[1724293677836,0.03920727,2619.5,2619.4,2.3599]
[1724293678038,0.35507548,2619.7,2619.4,2.3599]
[1724293678283,0.42742943,2619.8,2619.4,2.3599]
[1724293678284,0.03938526,2619.5,2619.4,2.3599]
[1724293678488,0.42742943,2619.8,2619.4,2.3599]
[1724293678786,0.35522435,2619.7,2619.4,2.3599]
[1724293678985,0.35522435,2619.6,2619.4,2.3599]
[1724293679187,0.03957919,2619.6,2619.4,4.65048]
[1724293679542,1.98006743,2620.1,2619.5,2.29051]
[1724293679746,0.82161301,2620.0,2619.6,2.29041]
[1724293679946,0.82161301,2620.0,2619.8,2.3181]
[1724293679947,0.35529269,2619.9,2619.8,2.3181]
[1724293680172,0.35529269,2619.9,2619.8,4.60835]
[1724293680375,0.03903249,2619.9,2619.8,4.60835]
[1724293680778,4.26972743,2620.5,2619.9,2.29016]
[1724293681107,3.30100375,2620.4,2619.8,2.3181]
[1724293681311,0.35529201,2620.3,2619.8,2.3181]
[1724293681465,0.35529201,2620.3,2619.8,4.60832]
[1724293682411,2.64510201,2620.3,2619.8,2.3181]
[1724293682564,0.91437339,2620.2,2619.8,2.3181]
[1724293682911,0.35529201,2620.1,2619.8,2.3181]
[1724293683088,0.35529201,2620.1,2619.7,2.29027]
[1724293683665,0.35529201,2620.1,2619.8,2.29024]
[1724293684007,2.28978,2620.4,2619.8,2.29024]
[1724293684161,0.78222132,2620.3,2619.8,2.29024]
[1724293684364,0.35531724,2620.2,2619.8,2.29024]
[1724293685089,0.35531724,2620.2,2619.9,2.4061]
[1724293685794,0.42690408,2620.3,2619.9,2.4061]
[1724293686109,0.35531153,2620.2,2619.9,2.4061]
[1724293686308,0.30719956,2620.2,2619.9,2.4061]
[1724293686904,2.28978,2620.4,2619.9,4.69623]
[1724293687208,0.35531498,2620.3,2620.0,2.29001]
[1724293687408,4.26774716,2620.6,2620.0,2.29001]
[1724293687613,1.36052733,2620.5,2620.0,2.29001]
[1724293687764,0.35531261,2620.4,2620.0,2.29001]
[1724293688107,0.35531261,2620.4,2620.2,2.28989]
[1724293688108,0.03920239,2620.3,2620.2,2.28989]
[1724293688333,0.394515,2620.3,2620.2,2.2899]
[1724293688691,0.394515,2620.3,2620.0,2.29001]
[1724293688892,0.03920239,2620.3,2620.0,2.29001]
[1724293689091,0.03920239,2620.3,2620.0,4.58002]
[1724293689403,0.03890997,2620.2,2620.0,4.58002]
[1724293689600,0.03890997,2620.2,2620.1,2.28998]
[1724293689923,2.28955,2620.6,2620.1,2.28998]
[1724293690240,2.98514713,2620.6,2620.0,2.29001]
[1724293690383,0.39459528,2620.5,2620.1,2.28993]
[1724293690583,0.03915255,2620.5,2620.1,2.28993]
[1724293691953,0.03915255,2620.5,2620.0,2.29001]
[1724293692135,0.03915255,2620.5,2620.0,2.29]
[1724293692537,0.03915255,2620.5,2620.0,4.58002]
[1724293692711,0.03915255,2620.5,2620.1,2.28997]
[1724293693032,2.28951,2620.7,2620.1,2.28997]
[1724293693206,0.03933518,2620.4,2620.1,2.28997]
[1724293693405,2.68827412,2620.8,2619.8,2.4227]
[1724293693720,0.03930241,2620.3,2620.2,2.2899]
[1724293693925,2.28947,2620.7,2620.2,2.2899]
[1724293694131,0.03946391,2620.3,2620.2,2.2899]
[1724293694329,2.28947,2620.7,2620.2,2.2899]
[1724293694639,2.82288706,2620.6,2620.0,7.00272]
[1724293694935,2.82288706,2620.6,2619.7,7.75823]
[1724293694936,2.28983,2620.3,2619.7,7.75823]
[1724293695092,2.2899,2620.2,2619.7,2.4679]
[1724293695295,2.51899,2620.1,2619.7,2.4679]
[1724293695610,0.03950043,2620.0,2619.7,2.4679]
[1724293696136,0.03950043,2620.0,2619.6,9.70416]
[1724293696338,0.03950043,2620.0,2619.6,2.29036]
[1724293697662,0.03950043,2620.0,2619.6,4.58073]
[1724293697853,0.03950043,2620.0,2619.7,2.29031]
[1724293698579,0.03950043,2620.0,2619.8,2.29023]
[1724293698938,2.28984,2620.3,2619.8,2.29023]
[1724293699245,0.228984,2620.2,2619.8,2.29023]
[1724293699495,0.26828849,2620.2,2619.8,2.29023]
[1724293699935,0.26828849,2620.2,2619.9,2.29012]
[1724293700138,0.03930449,2620.2,2619.9,2.4689]
[1724293700466,2.28968,2620.5,2619.9,2.4689]
[1724293700622,0.03925368,2620.1,2619.9,2.4689]
[1724293700822,2.28968,2620.5,2619.9,2.4689]
[1724293701081,0.03909464,2620.0,2619.9,4.75906]
[1724293701239,0.72451149,2620.4,2619.9,4.75906]
[1724293701429,0.03911268,2620.0,2619.9,4.75906]
[1724293701625,0.72451149,2620.4,2619.9,4.75906]
[1724293701824,0.03910203,2620.0,2619.9,4.75906]
[1724293702122,0.72451149,2620.4,2619.9,4.75906]
[1724293702471,0.53038915,2620.3,2619.9,4.75906]
[1724293702769,0.03934465,2620.3,2619.9,4.75906]
[1724293703129,0.03934465,2620.3,2620.0,2.29]
[1724293703745,0.03934465,2620.3,2620.0,4.58003]
[1724293704036,0.03934465,2620.3,2620.0,2.29]
[1724293704223,0.03934465,2620.3,2619.9,2.4689]
[1724293704424,0.03934465,2620.3,2619.8,2.29016]
[1724293704425,0.57367226,2620.3,2619.8,2.29016]
[1724293705476,0.57367226,2620.3,2619.8,4.58035]
[1724293706071,0.57367226,2620.3,2619.9,2.29014]
[1724293706272,2.28991,2620.2,2619.7,2.29032]
[1724293706473,2.32908573,2620.2,2619.7,2.29032]
[1724293707141,2.91685221,2620.2,2619.7,2.29032]
[1724293708784,0.62694221,2620.2,2619.7,2.29032]
[1724293709130,0.03917573,2620.2,2620.1,4.64078]
[1724293709429,2.28959,2620.6,2620.1,4.64078]
[1724293709755,0.03913113,2620.2,2620.1,4.64078]
[1724293709939,2.28959,2620.6,2620.1,2.28998]
[1724293710130,0.03914917,2620.2,2620.1,2.28998]
[1724293710474,0.03916721,2620.2,2620.1,2.28998]
[1724293710652,0.46677467,2620.5,2620.1,2.28998]
[1724293710881,0.03918524,2620.2,2620.1,2.28998]
[1724293711046,2.28959,2620.6,2620.1,2.28998]
[1724293711243,0.03914347,2620.2,2620.1,2.28998]
[1724293711468,2.28959,2620.6,2620.1,2.28998]
[1724293711642,0.03924091,2620.2,2620.1,2.28998]
[1724293711853,2.28959,2620.6,2620.1,2.28998]
[1724293712182,1.98146068,2620.6,2620.3,4.60459]
[1724293712334,0.45563409,2620.6,2620.3,4.60459]
[1724293712539,0.45563409,2620.6,2620.1,2.28998]
[1724293712763,2.74520409,2620.6,2620.1,2.28998]
[1724293714271,4.72666477,2620.6,2620.1,2.28998]
[1724293714647,2.28969,2620.5,2620.0,2.3148]
[1724293714795,2.74108631,2620.5,2619.7,2.279]
[1724293714980,4.60227,2620.3,2619.7,4.56933]
[1724293715186,2.28998,2620.2,2619.7,2.279]
[1724293715351,3.17738107,2620.1,2619.6,9.7042]
[1724293715554,3.17738107,2620.1,2619.6,2.2904]
[1724293715751,4.27154068,2620.0,2619.4,4.56954]
[1724293715991,6.75848068,2619.9,2619.3,2.4172792]
[1724293716210,6.75848068,2619.9,2619.3,0.1266092]
[1724293716211,2.2905,2619.6,2619.3,0.1266092]
[1724293716886,1.98307051,2619.6,2619.3,0.1266092]
[1724293717201,1.98307051,2619.6,2619.3,2.4172692]
[1724293717399,4.27341051,2619.7,2619.3,0.1266092]
[1724293717602,0.49492586,2619.6,2619.3,0.1266092]
[1724293717755,0.0386354,2619.5,2619.3,0.1266092]
[1724293717956,2.3291654,2619.5,2619.3,0.1266092]
[1724293718962,0.0386354,2619.5,2619.3,0.1266092]
[1724293719162,0.03684985,2619.4,2619.3,0.1266092]
[1724293720862,2.46663177,2619.6,2619.3,0.1266092]
[1724293721088,0.03690397,2619.4,2619.3,0.1266092]
[1724293721293,2.46663177,2619.6,2619.3,0.1266092]
[1724293721478,0.03692201,2619.4,2619.3,0.1266092]
[1724293721707,1.98307051,2619.6,2619.5,4.58102]
[1724293721923,1.98307051,2620.2,2619.8,2.29019]
[1724293722215,1.98307051,2620.1,2619.8,2.29019]
[1724293722430,1.98307051,2620.2,2619.8,2.29019]
[1724293722575,3.30290197,2620.3,2619.8,2.29019]
[1724293724090,3.30290197,2620.3,2619.9,2.29015]
[1724293724294,1.98307051,2620.7,2620.3,2.4612]
[1724293724475,1.98307051,2620.8,2620.7,2.28946]
[1724293724684,2.38188234,2620.9,2620.7,4.57887]
[1724293724883,2.38188234,2620.9,2620.7,2.28941]
[1724293725120,0.39881183,2620.9,2620.7,2.28941]
[1724293725490,0.39881183,2620.9,2620.5,4.57916]
[1724293725697,0.39881183,2620.9,2620.6,2.28946]
[1724293726537,0.39881183,2620.9,2620.7,2.28946]
[1724293726831,0.0361617,2620.8,2620.7,0.457902]
[1724293727134,0.0361617,2620.8,2620.7,6.91652]
[1724293727316,1.98424188,2621.4,2620.7,6.91652]
[1724293727317,1.98424188,2621.4,2620.8,2.28929]
[1724293728807,4.27309188,2621.4,2620.8,2.28929]
[1724293730218,4.27309188,2621.4,2620.8,4.57861]
[1724293730407,5.24704326,2621.4,2620.8,4.57861]
[1724293730624,2.95594584,2621.4,2620.8,4.57861]
[1724293730822,2.95594584,2621.4,2620.8,4.5786]
[1724293731023,2.95594584,2621.4,2620.8,2.28929]
[1724293731226,0.97395138,2621.4,2620.8,2.28929]
[1724293732334,3.26281138,2621.4,2620.8,2.28929]
[1724293732721,5.41095375,2621.3,2620.7,2.3376]
[1724293732897,3.15688075,2621.3,2620.7,4.62704]
[1724293734076,3.15688075,2621.3,2620.8,2.28935]
[1724293734782,0.034927,2621.3,2620.8,2.28935]
[1724293734966,0.034927,2621.3,2620.9,2.28927]
[1724293735125,2.28885,2621.4,2620.8,2.28935]
[1724293735467,0.03494748,2621.3,2620.8,2.28935]
[1724293736267,2.32391748,2621.3,2620.8,2.28935]
[1724293736574,3.06303284,2621.3,2620.7,4.62698]
[1724293737238,3.06303284,2621.3,2620.8,2.28932]
[1724293737239,0.77406284,2621.3,2620.8,2.28932]